fUSD/lending_fUSD_20240606
["ID","MTS","AMOUNT","RATE_DAILY","PERIOD"]
[328687715,1717705847121,-151.0,0.00027123,7]
[328687716,1717705847130,-151.0,0.00027123,7]
[328687717,1717705847139,-417.06,0.00027123,2]
[328687718,1717705847148,-872.83,0.00027123,2]
[328687719,1717705847158,-417.06,0.00027123,2]
[328687720,1717705847167,-872.83,0.00027123,2]
[328687721,1717705847178,-414.4,0.00027123,2]
[328687722,1717705847188,-872.83,0.00027123,2]
[328687723,1717705847199,-872.83,0.00027123,2]
[328687724,1717705847209,-872.83,0.00027123,2]
[328687725,1717705847219,-872.83,0.00027123,2]
[328687726,1717705847231,-872.83,0.00027123,2]
[328687727,1717705847239,-872.83,0.00027123,2]
[328687728,1717705847248,-698.21,0.00027123,2]
[328687729,1717705847259,-806.82910337,0.0002739,2]
[328687730,1717705847270,-202.08582506,0.00027397,7]
[328687731,1717705847281,-151.0,0.00027397,7]
[328687732,1717705847290,-170.95,0.00027397,2]
[328687733,1717705847302,-600.15,0.00027397,10]
[328687734,1717705847312,-347.31,0.00027397,10]
[328687735,1717705847321,-519.26,0.00027397,10]
[328687736,1717705847330,-432.72,0.00027397,10]
[328687737,1717705847340,-360.6,0.00027397,10]
[328687738,1717705847349,-422.3,0.00027534,2]
[328687739,1717705847358,-525.95,0.00027534,2]
[328687740,1717705847368,-155.32,0.00027534,2]
[328687741,1717705847380,-150.0,0.00027534,2]
[328687742,1717705847388,-150.0,0.00027534,2]
[328687743,1717705847398,-164.06,0.00027534,2]
[328687744,1717705847407,-353.13,0.00027534,2]
[328687745,1717705847416,-278.92,0.00027534,2]
[328687746,1717705847427,-150.0,0.00027534,2]
[328687747,1717705847437,-384.09,0.00027534,2]
[328687748,1717705847448,-422.3,0.00027534,2]
[328687749,1717705847458,-525.95,0.00027534,2]
[328687750,1717705847467,-150.0,0.00027534,2]
[328687751,1717705847476,-150.0,0.00027534,2]
[328687752,1717705847486,-353.13,0.00027534,2]
[328687753,1717705847500,-150.0,0.00027534,2]
[328687754,1717705847515,-164.06,0.00027534,2]
[328687755,1717705847526,-150.0,0.00027534,2]
[328687756,1717705847536,-422.3,0.00027534,2]
[328687757,1717705847545,-525.95,0.00027534,2]
[328687758,1717705847555,-353.13,0.00027534,2]
[328687759,1717705847564,-150.0,0.00027534,2]
[328687760,1717705847577,-150.0,0.00027534,2]
[328687761,1717705847589,-150.0,0.00027534,2]
[328687762,1717705847600,-150.0,0.00027534,2]
[328687763,1717705847609,-164.06,0.00027534,2]
[328687764,1717705847620,-150.0,0.00027534,2]
[328687765,1717705847629,-525.95,0.00027534,2]
[328687766,1717705847639,-150.0,0.00027534,2]
[328687767,1717705847649,-422.3,0.00027534,2]
[328687768,1717705847658,-164.06,0.00027534,2]
[328687769,1717705847668,-150.0,0.00027534,2]
[328687770,1717705847677,-353.13,0.00027534,2]
[328687771,1717705847686,-150.0,0.00027534,2]
[328687772,1717705847696,-525.95,0.00027534,2]
[328687773,1717705847706,-422.3,0.00027534,2]
[328687774,1717705847715,-164.06,0.00027534,2]
[328687775,1717705847724,-353.13,0.00027534,2]
[328687776,1717705847734,-150.0,0.00027534,2]
[328687777,1717705847743,-150.0,0.00027534,2]
[328687778,1717705847752,-150.0,0.00027534,2]
[328687779,1717705847762,-164.06,0.00027534,2]
[328687780,1717705847771,-150.0,0.00027534,2]
[328687781,1717705847780,-525.95,0.00027534,2]
[328687782,1717705847789,-353.13,0.00027534,2]
[328687783,1717705847798,-422.3,0.00027534,2]
[328687784,1717705847807,-422.3,0.00027534,2]
[328687785,1717705847817,-525.95,0.00027534,2]
[328687786,1717705847828,-150.0,0.00027534,2]
[328687787,1717705847837,-164.06,0.00027534,2]
[328687788,1717705847847,-353.13,0.00027534,2]
[328687789,1717705847856,-150.0,0.00027534,2]
[328687790,1717705847865,-150.0,0.00027534,2]
[328687791,1717705847875,-422.3,0.00027534,2]
[328687792,1717705847884,-523.95,0.00027534,2]
[328687793,1717705847893,-164.06,0.00027534,2]
[328687794,1717705847902,-150.0,0.00027534,2]
[328687795,1717705847912,-150.0,0.00027534,2]
[328687796,1717705847921,-353.13,0.00027534,2]
[328687797,1717705847930,-422.3,0.00027534,2]
[328687798,1717705847939,-621.96,0.00027534,2]
[328687799,1717705847949,-162.82,0.00027534,2]
[328687800,1717705847958,-164.06,0.00027534,2]
[328687801,1717705847967,-300.0,0.00027534,2]
[328687802,1717705847976,-422.3,0.00027534,2]
[328687803,1717705847985,-164.06,0.00027534,2]
[328687804,1717705847994,-164.06,0.00027534,2]
[328687805,1717705848004,-422.3,0.00027534,2]
[328687806,1717705848015,-164.06,0.00027534,2]
[328687807,1717705848024,-366.79,0.00027534,2]
[328687808,1717705848033,-158.56,0.00027534,2]
[328687809,1717705848042,-473.89088,0.00027564,2]
[328687810,1717705848052,-297.542532,0.00027629,2]
[328687811,1717705848061,-3000.0,0.000277,2]
[328687812,1717705848071,-151.0,0.000277,7]
[328687813,1717705848079,-361.808134,0.000277,7]
[328687814,1717705848088,-186.748072,0.000277,7]
[328687815,1717705848098,-361.808134,0.000277,7]
[328687816,1717705848107,-151.0,0.000277,7]
[328687817,1717705848116,-151.0,0.000277,7]
[328687818,1717705848127,-151.0,0.000277,7]
[328687819,1717705848139,-473.89088,0.00027909,2]
[328687820,1717705848150,-1303.0,0.00028036,2]
[328687821,1717705848162,-150.964,0.00028036,2]
[328687822,1717705848173,-3171.0,0.00028036,2]
[328687823,1717705848336,-1853.0,0.00028036,2]
[328687824,1717705848347,-975.0,0.00028036,2]
[328687825,1717705848357,-13052.389,0.00028036,2]
[328687826,1717705848367,-437.0,0.00028036,2]
[328687827,1717705848376,-1261.0,0.00028036,2]
[328687828,1717705848387,-612.0,0.00028036,2]
[328687829,1717705848397,-1262.0,0.00028036,2]
[328687830,1717705848408,-150.498,0.00028036,2]
[328687831,1717705848420,-164.0,0.00028036,2]
[328687832,1717705848430,-151.0,0.00028036,7]
[328687833,1717705848441,-151.0,0.00028036,7]
[328687834,1717705848451,-220.914182,0.00028036,7]
[328687835,1717705848462,-864.77810411,0.00028111,2]
[328687836,1717705848472,-151.0,0.00028122,7]
[328687837,1717705848485,-28243.3891008,0.00028122,2]
[328687838,1717705848496,-500.0,0.00028128,2]
[328687839,1717705848506,-165.56023904,0.00028128,2]
[328687840,1717705848515,-500.0,0.00028128,2]
[328687841,1717705848525,-473.89088,0.00028253,2]
[328687842,1717705848535,-226.50367833,0.00028299,2]
[328687843,1717705848544,-150.0,0.00028356,2]
[328687844,1717705848554,-150.0,0.00028356,2]
[328687845,1717705848564,-150.0,0.00028356,2]
[328687846,1717705848574,-150.0,0.00028356,2]
[328687847,1717705848583,-2834.0,0.000284,2]
[328687848,1717705848593,-656.0,0.000284,2]
[328687849,1717705848602,-150.452,0.00028413,2]
[328687850,1717705848612,-3779.17572559,0.00028445,2]
[328687851,1717705848621,-690.39,0.00028473,2]
[328687852,1717705848630,-473.89088,0.00028598,2]
[328687853,1717705848639,-150.5,0.0002867,15]
[328687854,1717705848648,-572.0,0.0002867,15]
[328687855,1717705848657,-150.5,0.0002868,15]
[328687856,1717705848666,-572.0,0.0002868,15]
[328687857,1717705848675,-572.0,0.0002869,15]
[328687858,1717705848686,-150.5,0.0002869,15]
[328687859,1717705848695,-19618.76557597,0.000287,2]
[328687860,1717705848705,-5000.0,0.000287,20]
[328687861,1717705848714,-205.81993449,0.00028709,2]
[328687862,1717705848723,-500.0,0.00028767,2]
[328687863,1717705848733,-500.0,0.00028767,2]
[328687864,1717705848743,-500.0,0.00028767,2]
[328687865,1717705848753,-500.0,0.00028768,2]
[328687866,1717705848762,-2100.0,0.000288,10]
[328687867,1717705848772,-902.30449844,0.00028888,2]
[328687868,1717705848781,-1000.0,0.000289,2]
[328687869,1717705848790,-10000.0,0.000289,2]
[328687870,1717705848800,-2600.0,0.000289,10]
[328687871,1717705848809,-473.89088,0.00028942,2]
[328687872,1717705848818,-152.48,0.0002899,2]
[328687873,1717705848828,-644.59172463,0.00028998,2]
[328687874,1717705848836,-4918.77017177,0.00029,5]
[328687875,1717705848846,-10005.94508831,0.00029,3]
[328687876,1717705848855,-12968.40920683,0.00029,2]
[328687877,1717705848865,-769.74143905,0.00029,2]
[328687878,1717705848875,-8102.07053227,0.00029,2]
[328687879,1717705848884,-345.0,0.00029,2]
[328687880,1717705848894,-74587.72770611,0.00029,2]
[328687881,1717705848912,-1008.29629954,0.00029,2]
[328687882,1717705848927,-704.952216,0.00029,2]
[328687883,1717705848938,-3514.65,0.00029,2]
[328687891,1717705911414,12026.6752,9.911e-05,2]
[328687908,1717706099466,157.060705,0.0003,40]
[328687909,1717706130417,157.060705,0.0003,44]
[328687910,1717706131325,157.060705,0.0003,44]
[328687911,1717706132156,157.060705,0.0003,44]
[328687912,1717706135224,157.060705,0.0003,44]
[328687913,1717706139482,157.060705,0.0003,46]
[328687914,1717706140539,157.060705,0.0003,46]
[328687915,1717706141539,157.060705,0.0003,46]
[328687916,1717706149802,157.060705,0.0003,46]
[328687918,1717706166558,156.060705,0.0003,44]
[328688042,1717707031918,-318.63392255,0.00011743,2]
[328688043,1717707031929,-540.17778652,0.00011743,2]
[328688044,1717707031941,-359.64506901,0.00011743,2]
[328688045,1717707032138,-7997.61489475,0.00011743,2]
[328688046,1717707032147,-718.98896664,0.00011743,2]
[328688047,1717707032157,-688.29645905,0.00011743,2]
[328688048,1717707032166,-1218.39220414,0.00011744,2]
[328688049,1717707032176,-282.76675085,0.00011744,2]
[328688050,1717707032186,-791.96732947,0.00011745,2]
[328688051,1717707032195,-1677.95166466,0.000118,2]
[328688052,1717707032205,-379.71,0.00012856,2]
[328688053,1717707032215,-200.0,0.000136,4]
[328688054,1717707032224,-500.0,0.000137,5]
[328688055,1717707032233,-150.0,0.00013781,2]
[328688056,1717707032243,-2770.57795319,0.00013798,2]
[328688057,1717707032253,-7838.5884,0.000138,2]
[328688058,1717707032264,-700.0,0.000138,5]
[328688059,1717707032273,-5186.86,0.000138,2]
[328688060,1717707032282,-2641.98436638,0.00013899,2]
[328688061,1717707032292,-100000.0,0.000139,2]
[328688062,1717707032301,-221.5099,0.000139,2]
[328688063,1717707032311,-1667.26148518,0.000139,2]
[328688064,1717707032320,-168.03817715,0.000139,2]
[328688065,1717707032329,-1000.0,0.000139,5]
[328688066,1717707032339,-323.17969143,0.000139,2]
[328688067,1717707032348,-152.41,0.0001399,2]
[328688068,1717707032357,-152.41,0.0001399,2]
[328688069,1717707032367,-152.41,0.0001399,2]
[328688070,1717707032376,-152.41,0.0001399,2]
[328688071,1717707032386,-243.56484948,0.0001399,2]
[328688072,1717707032395,-542.00347646,0.00013998,2]
[328688073,1717707032404,-21132.6,0.00013999,2]
[328688074,1717707032414,-499.99,0.00013999,2]
[328688075,1717707032423,-387013.10690053,0.00014,2]
[328688076,1717707032435,-5420.58701703,0.00014,2]
[328688077,1717707032446,-5855.66818691,0.00014,2]
[328688078,1717707032463,-3398.70592046,0.00014,2]
[328688079,1717707032474,-621.77146932,0.00014,2]
[328688080,1717707032486,-883.97785601,0.00014,2]
[328688081,1717707032498,-450.25,0.00014,2]
[328688082,1717707032510,-866.7628267,0.00014,2]
[328688083,1717707032557,-1240.78981057,0.00014,2]
[328688084,1717707032569,-6659.40709401,0.00014,2]
[328688085,1717707032580,-32068.67997811,0.00014,2]
[328688086,1717707032594,-1038.33,0.00014,2]
[328688088,1717707037864,-4343.464663,0.00014,2]
[328688089,1717707037876,-4292.0362155,0.00014,2]
[328688090,1717707037888,-3389.96530916,0.00014,2]
[328688091,1717707037900,-594.86199997,0.00014,2]
[328688092,1717707037911,-3206.36718444,0.00014,2]
[328688093,1717707037931,-11157.25219503,0.00014,2]
[328688094,1717707037943,-500.0,0.00014,2]
[328688095,1717707037955,-1657.50856803,0.00014,2]
[328688096,1717707038069,-1941.56591577,0.00014,2]
[328688097,1717707038107,-9319.78366356,0.00014,2]
[328688098,1717707038147,-1444.47767173,0.00014,2]
[328688099,1717707038182,-308.66866659,0.00014,2]
[328688100,1717707038310,-6032.35964031,0.00014,2]
[328688101,1717707038322,-2053.71551599,0.00014,2]
[328688104,1717707041655,-1507.65907569,0.000139,2]
[328688105,1717707041664,-553107.06490067,0.00014,2]
[328688106,1717707041676,-1635.93600368,0.00014,2]
[328688107,1717707041688,-5139.73353367,0.00014,2]
[328688108,1717707041699,-426.69999987,0.00014,2]
[328688109,1717707041711,-522.809,0.00014,2]
[328688110,1717707041734,-311.62064007,0.00014,2]
[328688111,1717707041777,-350.428673,0.00014,2]
[328688112,1717707041911,-137508.16643514,0.00014,2]
[328688113,1717707041923,-1298.27346773,0.00014,2]
[328688114,1717707041934,-2656.12641985,0.00014,2]
[328688135,1717707042979,-1163036.34903992,0.00014,2]
[328688137,1717707042991,-3319.68879838,0.00014,2]
[328688140,1717707043003,-8567.75412884,0.00014,2]
[328688149,1717707044573,-6860.5,0.00014,2]
[328688150,1717707044704,-7363.59996743,0.00014,2]
[328688151,1717707044718,-4043.23692891,0.00014,2]
[328688155,1717707045925,-329.34522846,0.00013999,2]
[328688156,1717707045935,-45449.00892012,0.00014,2]
[328688157,1717707046009,-3168.98365127,0.00014,2]
[328688158,1717707046151,-922.85034322,0.00014,2]
[328688159,1717707046163,-706.93,0.00014,2]
[328688160,1717707046175,-62636.95320417,0.00014,2]
[328688653,1717708232331,-155.0,0.00013719,2]
[328688654,1717708232341,-155.0,0.00013719,2]
[328688655,1717708232351,-40.63988,0.00013719,2]
[328688656,1717708232403,-337.21932,0.00013719,2]
[328688657,1717708232416,-893.88077685,0.00013719,2]
[328688658,1717708232428,-4.75799635,0.00013719,2]
[328688659,1717708232439,-251.46384221,0.0001372,2]
[328688660,1717708232449,-207.56210724,0.0001372,2]
[328688661,1717708232473,-59.57905183,0.0001372,2]
[328688662,1717708232482,-347.32323892,0.00013721,2]
[328688663,1717708232494,-353.87,0.00013721,2]
[328688664,1717708232802,-517.19896522,0.00013721,2]
[328688666,1717708232812,-475.47185481,0.00013783,2]
[328688668,1717708232821,-150.0,0.00013994,2]
[328688669,1717708232831,-2565.14385466,0.00013995,2]
[328688670,1717708232871,-381.37894593,0.00013995,2]
[328688672,1717708232883,-300.0,0.00013995,2]
[328688673,1717708232895,-310.0,0.00013995,2]
[328688675,1717708238286,-155.0,0.00013718,2]
[328688676,1717708238297,-1732.98786038,0.00013995,2]
[328688677,1717708238306,-68.01213962,0.00013998,2]
[328688678,1717708238318,-87.07429348,0.00013998,2]
[328688679,1717708238328,-718.08604668,0.00013999,2]
[328688680,1717708238337,-136.44218853,0.00013999,2]
[328688681,1717708238349,-84.59781147,0.00013999,2]
[328688682,1717708238359,-499.99,0.00013999,2]
[328688683,1717708238368,-411.80325522,0.00014,2]
[328688684,1717708238379,-194.97,0.00014506,2]
[328688685,1717708238393,-1000.0,0.00014999,2]
[328688686,1717708238402,-1000.0,0.00014999,2]
[328688687,1717708238412,-1801.29,0.00014999,2]
[328688688,1717708238421,-291.26599582,0.00015,2]
[328688689,1717708238614,-351.8453,0.00015,2]
[328688729,1717708241158,-34408.60646135,0.00015,2]
[328688730,1717708242474,-999.99174,0.00015,2]
[328688731,1717708242486,-39934.92048907,0.00015,2]
[328688732,1717708242539,-950.55500002,0.00015,2]
[328688805,1717708243329,-3534.65,0.00015,2]
[328688817,1717708243646,-3754.0,0.00015,2]
[328688818,1717708243738,-572.67127961,0.00015,2]
[328688819,1717708243749,-3241.39854503,0.00015,2]
[328688960,1717708246341,-21500.0,0.00015,2]
[328688961,1717708246533,-8990.09920006,0.00015,2]
[328688962,1717708246543,-210.0,0.00015393,2]
[328688963,1717708246552,-195.34884592,0.00017222,2]
[328688964,1717708246562,-306.89581526,0.00017222,2]
[328688965,1717708246571,-155.11711386,0.00017224,2]
[328688966,1717708246580,-286.34976771,0.00017259,2]
[328688968,1717708246727,-51.65172318,0.00017259,2]
[328688969,1717708246736,-155.4325017,0.00017259,2]
[328688970,1717708246745,-396.38408973,0.00018021,2]
[328689007,1717709432490,-251.46384221,0.00013328,2]
[328689008,1717709432500,-517.48309592,0.00013329,2]
[328689009,1717709432579,-759.01487728,0.00013329,2]
[328689010,1717709432589,-1705.75307049,0.0001333,2]
[328689011,1717709432666,-1712.57125797,0.0001333,2]
[328689012,1717709432900,-262.90926715,0.0001333,2]
[328689062,1717709441682,-735.84553311,0.0001333,2]
[328689063,1717709443084,-1063.63257,0.0001333,2]
[328689064,1717709443096,-1379.71523986,0.0001333,2]
[328689065,1717709443109,-2355.64473425,0.0001333,2]
[328689066,1717709443118,-827.07526575,0.00013331,2]
[328689127,1717709443614,-888.34063425,0.00013331,2]
[328689128,1717709443624,-5012.2489,0.00013899,2]
[328689129,1717709443634,-590.69526903,0.00013999,2]
[328689130,1717709443643,-398.65,0.00015471,2]
[328689132,1717709443652,-1852.42,0.00017538,2]
[328689134,1717709443662,-150.0,0.00017639,2]
[328689136,1717709443671,-299.99,0.00017639,4]
[328689137,1717709443682,-250.0,0.00017652,2]
[328689139,1717709443691,-499.99,0.00017652,2]
[328689141,1717709443700,-1000.0,0.00017658,2]
[328689143,1717709443710,-2611.20547856,0.00017661,2]
[328689145,1717709443720,-398.65,0.00017735,2]
[328689148,1717709443739,-851.94,0.00017771,2]
[328689151,1717709443753,-155.61782211,0.00017841,2]
[328689153,1717709443763,-6668.6029,0.00017921,2]
[328689155,1717709443773,-260.74,0.00017962,2]
[328689157,1717709443784,-291.71677108,0.00017999,2]
[328689159,1717709443793,-896.16003082,0.00018,2]
[328689160,1717709443803,-22239.32629279,0.00018001,2]
[328689161,1717709443813,-7726.7530102,0.00018008,2]
[328689162,1717709443824,-1000.0,0.0001801,2]
[328689163,1717709443834,-34966.97943608,0.00018021,2]
[328689164,1717709443844,-83070.7411947,0.00018021,2]
[328689165,1717709443854,-1042.16808619,0.00018021,2]
[328689166,1717709443869,-1046.53950054,0.00018021,2]
[328689167,1717709443879,-224.63387,0.00018021,2]
[328689168,1717709443889,-23900.0,0.00018818,2]
[328689169,1717709443899,-250.0,0.00018844,2]
[328689170,1717709443909,-349.40342088,0.00019178,2]
[328689171,1717709443919,-1000.0,0.00019866,2]
[328689172,1717709443929,-398.65,0.00019999,2]
[328689173,1717709443939,-1980.08690757,0.0002,2]
[328689174,1717709443949,-155.0,0.0002,4]
[328689175,1717709443959,-497.71766581,0.0002,10]
[328689176,1717709443969,-226.60187199,0.000201,2]
[328689177,1717709443987,-260.74,0.00020702,2]
[328689178,1717709444004,-300.0,0.0002146,2]
[328689179,1717709444018,-283.1,0.00021918,2]
[328689180,1717709444033,-250.0,0.00021918,2]
[328689181,1717709444047,-1000.0,0.00022073,2]
[328689182,1717709444059,-398.65,0.00022263,2]
[328689183,1717709444072,-100000.0,0.00022843,2]
[328689184,1717709444085,-1513.28695999,0.00022921,2]
[328689185,1717709444098,-224.63387,0.00023021,2]
[328689186,1717709444112,-260.74,0.00023441,2]
[328689187,1717709444125,-4631.21204591,0.000236,2]
[328689188,1717709444138,-13316.0,0.00023747,2]
[328689189,1717709444151,-1513.28695996,0.00023918,2]
[328689190,1717709444165,-9274.15954808,0.00024,3]
[328689191,1717709444178,-3296.37305938,0.00024,15]
[328689192,1717709444191,-1000.0,0.0002428,2]
[328689193,1717709444204,-418.57,0.00024384,2]
[328689194,1717709444216,-172.7,0.00024384,2]
[328689195,1717709444230,-160.66,0.00024384,2]
[328689196,1717709444242,-152.25,0.00024384,2]
[328689197,1717709444255,-398.65,0.00024527,2]
[328689198,1717709444268,-16992.22459753,0.00024798,2]
[328689199,1717709444281,-16992.22459751,0.00024798,2]
[328689200,1717709444293,-16992.22459751,0.00024798,2]
[328689201,1717709444304,-16992.22459751,0.00024798,2]
[328689202,1717709444314,-16992.22459751,0.00024798,2]
[328689203,1717709444326,-16992.22459751,0.00024798,2]
[328689204,1717709444337,-163.38794025,0.00024799,2]
[328689205,1717709444349,-163.38794021,0.00024799,2]
[328689206,1717709444361,-163.38794021,0.00024799,2]
[328689207,1717709444374,-163.38794021,0.00024799,2]
[328689208,1717709444387,-3000.0,0.000249,2]
[328689209,1717709444400,-1513.28695996,0.00024915,2]
[328689210,1717709444414,-1250.0,0.00025,2]
[328689211,1717709444426,-5000.0,0.000251,10]
[328689212,1717709444436,-16992.22459751,0.00025907,2]
[328689213,1717709444447,-163.38794021,0.00025907,2]
[328689214,1717709444457,-1513.28695996,0.00025912,2]
[328689215,1717709444468,-500.0,0.00025936,2]
[328689216,1717709444479,-500.0,0.00025936,2]
[328689217,1717709444491,-500.0,0.00025936,2]
[328689218,1717709444503,-414.1270851,0.00026235,2]
[328689219,1717709444516,-1012.12562752,0.000264,2]
[328689220,1717709444528,-1000.0,0.00026487,2]
[328689221,1717709444538,-2336.966324,0.000265,2]
[328689222,1717709444549,-155.75188493,0.0002653,2]
[328689223,1717709444561,-808.0,0.00026748,2]
[328689224,1717709444573,-2462.171,0.00026748,2]
[328689225,1717709444585,-398.65,0.00026791,2]
[328689226,1717709444597,-1513.28695996,0.00026909,2]
[328689227,1717709444608,-200.0,0.00027,2]
[328689228,1717709444619,-1300.0,0.00027,2]
[328689229,1717709444629,-150.0,0.00027,2]
[328689230,1717709444640,-1500.0,0.00027,2]
[328689231,1717709444651,-500.0,0.00027032,2]
[328689232,1717709444661,-16992.22459751,0.00027238,2]
[328689233,1717709444676,-1500.0,0.000275,2]
[328689234,1717709444687,-1641.264106,0.00027629,2]
[328689235,1717709444699,-3000.0,0.000277,2]
[328689236,1717709444710,-7500.0,0.000277,2]
[328689237,1717709444721,-33550.86505842,0.000279,10]
[328689238,1717709444733,-163.38794021,0.00027904,2]
[328689239,1717709444748,-1513.28695996,0.00027906,2]
[328689240,1717709444760,-1641.264106,0.00027975,2]
[328689241,1717709444772,-332.62,0.0002799,10]
[328689242,1717709444784,-623.0,0.00028,2]
[328689243,1717709444796,-1500.0,0.00028,2]
[328689244,1717709444809,-224.63387,0.00028021,2]
[328689245,1717709444820,-2551.0,0.000281,2]
[328689246,1717709444832,-500.0,0.00028128,2]
[328689247,1717709444844,-1641.264106,0.0002832,2]
[328689248,1717709444856,-500.0,0.000284,7]
[328689249,1717709444867,-395.0,0.000284,7]
[328689250,1717709444879,-1500.0,0.000285,2]
[328689251,1717709444890,-500.0,0.00028547,7]
[328689252,1717709444902,-16992.22459751,0.00028569,2]
[328689253,1717709444913,-1641.264106,0.00028665,2]
[328689254,1717709444925,-400.0,0.000287,10]
[328689255,1717709444935,-489.49586999,0.0002871,2]
[328689256,1717709444947,-165.07057326,0.00028767,30]
[328689257,1717709444958,-500.0,0.00028768,2]
[328689258,1717709444969,-800.0,0.000288,10]
[328689259,1717709444980,-165.07057326,0.00028877,30]
[328689260,1717709444992,-1200.0,0.000289,10]
[328689261,1717709445003,-169.11045151,0.000289,2]
[328689262,1717709445014,-193.17496519,0.000289,2]
[328689263,1717709445025,-1513.28695996,0.00028903,2]
[328689264,1717709445036,-63879.80484512,0.0002893,7]
[328689265,1717709445047,-500.0,0.00028969,8]
[328689266,1717709445058,-500.0,0.00028988,8]
[328689267,1717709445070,-152.4,0.0002899,2]
[328689268,1717709445082,-10866.5112786,0.00028991,2]
[328689269,1717709445093,-27944.1131625,0.00028991,2]
[328689270,1717709445106,-13414.4106196,0.00028991,2]
[328689271,1717709445116,-2258.7555698,0.00028991,2]
[328689272,1717709445128,-453.0,0.00028999,5]
[328689273,1717709445140,-2041.73843891,0.00028999,2]
[328689274,1717709445151,-96911.16788517,0.00029,2]
[328689275,1717709445162,-345.0,0.00029,2]
[328689276,1717709445174,-1317.89437205,0.00029,2]
[328689277,1717709445185,-494.0,0.00029,13]
[328689278,1717709445196,-160.0,0.00029,2]
[328689279,1717709445208,-186.09070747,0.00029,2]
[328689280,1717709445219,-186.09070747,0.00029,2]
[328689281,1717709445231,-186.09070747,0.00029,2]
[328689282,1717709445242,-186.09070747,0.00029,2]
[328689283,1717709445253,-186.09070747,0.00029,2]
[328689284,1717709445264,-186.09070747,0.00029,2]
[328689285,1717709445275,-186.09070747,0.00029,2]
[328689286,1717709445287,-186.09070747,0.00029,2]
[328689287,1717709445297,-186.09070747,0.00029,2]
[328689288,1717709445308,-186.09070747,0.00029,2]
[328689289,1717709445319,-186.09070747,0.00029,2]
[328689290,1717709445331,-186.09070747,0.00029,2]
[328689291,1717709445342,-186.09070747,0.00029,2]
[328689292,1717709445353,-186.09070747,0.00029,2]
[328689293,1717709445365,-186.09070747,0.00029,2]
[328689294,1717709445375,-186.09070747,0.00029,2]
[328689295,1717709445386,-186.09070747,0.00029,2]
[328689296,1717709445397,-186.09070747,0.00029,2]
[328689297,1717709445407,-186.09070747,0.00029,2]
[328689298,1717709445419,-186.09070747,0.00029,2]
[328689299,1717709445430,-186.09070747,0.00029,2]
[328689300,1717709445440,-186.09070747,0.00029,2]
[328689301,1717709445452,-186.09070747,0.00029,2]
[328689302,1717709445463,-186.09070747,0.00029,2]
[328689303,1717709445473,-186.09070747,0.00029,2]
[328689304,1717709445484,-186.09070747,0.00029,2]
[328689305,1717709445495,-186.09070747,0.00029,2]
[328689306,1717709445506,-186.09070747,0.00029,2]
[328689307,1717709445517,-186.09070747,0.00029,2]
[328689308,1717709445529,-186.09070747,0.00029,2]
[328689309,1717709445540,-1500.0,0.00029,2]
[328689310,1717709445552,-150.0,0.00029,6]
[328689311,1717709445561,-415.17732812,0.00029,2]
[328689312,1717709445571,-415.17732812,0.00029,2]
[328689313,1717709445580,-415.17732812,0.00029,2]
[328689314,1717709445589,-415.17732812,0.00029,2]
[328689315,1717709445599,-415.17732812,0.00029,2]
[328689316,1717709445609,-415.17732812,0.00029,2]
[328689317,1717709445865,-415.17732812,0.00029,2]